Cogmind - Beta 16 @@@ ROGUE MODE // 2026.01.28 @ 21:35:48 Player: Carter Result: Destroyed by G-47 Trooper with Particle Gun Performance ------------- Evolutions (2) 1000 Regions Visited (3) 600 Robots Destroyed (26) 130 Value Destroyed (580) 580 Prototype IDs (0) 0 Alien Tech Used (0) 0 Bonus (0) 0 TOTAL SCORE: 2310 Bonus ------- None Cogmind --------- Core Integrity 0/550 Matter 131/300 Energy 100/100 System Corruption 7% Temperature Cool (20) Movement Flying (40) Location -8/Materials Parts ------- > --- POWER (1) -------- (None) > --- PROPULSION (4) --- Flight Unit > --- UTILITY (4) ------ Advanced Targeting Computer > --- WEAPON (2) ------- Improved Light Cannon > --- INVENTORY (5) ---- (None) Peak State ------------ > --- POWER ------------ Light Ion Engine > --- PROPULSION ------- Flight Unit Flight Unit > --- UTILITY ---------- Advanced Targeting Computer Advanced Targeting Computer Advanced Targeting Computer Advanced Targeting Computer > --- WEAPON ----------- Pulse Rifle Pulse Rifle > --- INVENTORY -------- Ion Engine Light Ion Engine Flight Unit [Rating: 21] Favorites ----------- Power Ion Engine Engine Ion Engine Propulsion Flight Unit Leg Aluminum Leg Flight Unit Flight Unit Utility Advanced Targeting Computer Device Heat Sink Processor Advanced Targeting Computer Weapon Pulse Rifle Energy Gun Pulse Rifle Ballistic Gun Light Assault Rifle Ballistic Cannon Improved Light Cannon Launcher Rocket Launcher Build | -11 -10 -9 -8 ------- Run | Yrd Mat Mat Mat Slots Evolved 4 | . . 2 2 Power . | . . . . Propulsion 2 | . . . 2 Utility 2 | . . 2 . Weapon . | . . . . Parts Attached 21 | 4 4 11 2 Power 3 | 1 1 1 . Engine 3 | 1 1 1 . Core . | . . . . Reactor . | . . . . Propulsion 6 | 2 2 2 . Treads . | . . . . Leg 2 | 2 . . . Wheel . | . . . . Hover . | . . . . Flight 4 | . 2 2 . Utility 5 | . 1 4 . Device 1 | . 1 . . Storage . | . . . . Processor 4 | . . 4 . Hackware . | . . . . Protection . | . . . . Artifact . | . . . . Weapon 7 | 1 . 4 2 Energy Gun 3 | . . 3 . Energy Cannon . | . . . . Ballistic Gun 2 | 1 . 1 . Ballistic Cannon 1 | . . . 1 Launcher 1 | . . . 1 Special Weapon . | . . . . Impact Weapon . | . . . . Slashing Weapon . | . . . . Piercing Weapon . | . . . . Special Melee Weapon . | . . . . Unidentified Prototypes . | . . . . Parts Lost 10 | . . 1 9 Power 2 | . . 1 1 Propulsion 2 | . . . 2 Utility 3 | . . . 3 Weapon 3 | . . . 3 Highest Loss Streak 5 | . . 1 5 To Critical Strikes . | . . . . Average Backups 3 | . 1 2 4 Power . | . 1 . . Propulsion . | . . . . Utility . | . . . 1 Weapon . | . . . 1 Tool/Special . | . . . . Unused Backups 3 | . . . 3 Power . | . . . . Propulsion . | . . . . Utility 3 | . . . 3 Weapon . | . . . . Tool/Special . | . . . . Average Slot Usage (%) 69 | . 60 91 52 Engine 6 | . 14 10 1 Leg 1 | . 17 . . Flight 14 | . 10 22 9 Device 1 | . 3 1 . Processor 28 | . . 36 26 Energy Gun 12 | . . 18 9 Ballistic Gun 2 | . 14 1 . Ballistic Cannon 1 | . . . 3 Launcher 1 | . . . 2 Peak Build Rating 21 | 4 5 21 19 Average Rating 13 | 3 4 18 13 On Entrance 7 | . 4 5 19 Avg Prop Armor Cover (%) . | . . . . Naked Turns . | . . . . Heaviest Build 11 | 4 5 11 9 Greatest Support 20 | 20 20 8 8 Greatest Overweight (x) 2 | . . 1 2 Average Overweight (x) . | . . . . Largest Inventory Capacity 5 | 5 5 5 5 Average Capacity 5 | 5 5 5 5 Most Carried 5 | 1 3 5 5 Average Carried 3 | . 1 2 3 Final Capacity 5 | 5 5 5 5 Final Carried 4 | 1 3 4 . Class Distribution -------------------- 100% | Mutant Dominant Class ---------------- Mutant | -10/Materials Mutant | -9/Materials Mutant | -8/Materials Resources | -11 -10 -9 -8 ----------- Run | Yrd Mat Mat Mat Matter Collected 391 | 176 51 160 4 Remotely . | . . . . Salvage Created 723 | . 51 229 443 Parts 50 | . 6 20 24 Haulers Intercepted 3 | . . 1 2 Recyclers Shooed . | . . . . Parts Field Recycled . | . . . . Retrieved Matter . | . . . . Parts Self-Destructed . | . . . . Prevented . | . . . . Parts Restored . | . . . . Kills | -11 -10 -9 -8 ------- Run | Yrd Mat Mat Mat Combat Hostiles Destroyed 17 | . 3 8 6 Guns 13 | . 3 8 2 Cannons 1 | . . . 1 AOE 3 | . . . 3 Classes Destroyed 9 | . 1 3 5 Builder 2 | . . . 2 Hauler 3 | . . 1 2 Recycler 3 | . . . 3 Watcher 1 | . . . 1 Swarmer 8 | . 3 5 . Grunt 4 | . . 1 3 Brawler 1 | . . . 1 Sentry 3 | . . 2 1 Hunter 1 | . . . 1 Best Kill Streak 6 | . 3 3 6 Combat Bots Only 3 | . 3 3 3 Max Kills in Single Turn 3 | . 1 1 3 Gunslinging . | . . . . Exploded 2 | . . . 2 Melee . | . . . . Uniques/NPCs Destroyed . | . . . . Combat | -11 -10 -9 -8 -------- Run | Yrd Mat Mat Mat Hostile Shots Fired 165 | . 19 85 61 Missed 55 | . 5 28 22 Hits 110 | . 14 57 39 Melee 2 | . . . 2 Projectile 108 | . 14 57 37 Critical Strikes 1 | . . . 1 Damage Taken 1550 | . 98 507 945 Core 788 | . 26 201 561 Absorbed by Shields . | . . . . Core Remaining (%) 79 | 100 89 49 . Volleys Fired 70 | . 13 32 25 Largest 2 | . 1 2 2 Hottest 126 | . 20 126 103 Shots Fired 99 | . 13 43 43 Gun 84 | . 13 43 28 Cannon 4 | . . . 4 Launcher 11 | . . . 11 Special . | . . . . Kinetic 35 | . 13 18 4 Thermal 53 | . . 25 28 Explosive 11 | . . . 11 Electromagnetic . | . . . . Robot Hit Streak 20 | . 1 20 16 Robot Miss Streak 5 | . 5 2 1 Penetration Max . | . . . . Secondary Targets 1 | . . 1 . Max Gunslinging Chain 1 | . . 1 . Shots Hit Robots 70 | . 5 33 32 Core Hits 47 | . 5 15 27 Critical Kills . | . . . . Critical Parts Destroyed . | . . . . Critical Strikes 2 | . . 1 1 Burn 1 | . . 1 . Blast 1 | . . . 1 Melee Attacks . | . . . . Impact . | . . . . Slashing . | . . . . Piercing . | . . . . Sneak Attacks . | . . . . Combat Hostiles . | . . . . Follow-up Attacks . | . . . . Damage Inflicted 1785 | . 41 449 1295 Guns 750 | . 41 441 268 Cannons 59 | . . . 59 Explosions 960 | . . . 960 Melee . | . . . . Ramming 16 | . . 8 8 Kinetic 205 | . 41 105 59 Thermal 979 | . . 336 643 Explosive 585 | . . . 585 Electromagnetic . | . . . . Impact . | . . . . Slashing . | . . . . Piercing . | . . . . Highest Corruption 7 | . . . 7 Average Corruption 6 | . . . 6 Corruption Purged . | . . . . Corruption Blocked . | . . . . Effects 8 | . . . 8 Message Errors 3 | . . . 3 Matter Fused 3 | . . . 3 Heat Flow Errors 1 | . . . 1 Data Loss (minor) 1 | . . . 1 Overload Shots . | . . . . Overflow Damage 49 | . . . 49 Projectiles . | . . . . Explosions 49 | . . . 49 Melee . | . . . . Knockbacks 1 | . . . 1 Impact . | . . . . Kinetic 1 | . . . 1 Secondary . | . . . . Self-Inflicted Damage 225 | . . 3 222 Shots 5 | . . . 5 Rammed 6 | . . 5 1 Targets Rammed 6 | . . 5 1 Kicked . | . . . . Crushed . | . . . . Highest Temperature 236 | . . 236 175 Average Temperature 69 | . . 84 42 Received Heat Transfer 291 | . . 48 243 Effects 3 | . . 3 . Interference 3 | . . 3 . Siege Activations . | . . . . Martial Activations . | . . . . Shielding Activations . | . . . . Robots Disrupted . | . . . . Combat Hostiles . | . . . . Robots Corrupted . | . . . . Combat Hostiles . | . . . . Parts Fried . | . . . . Impact Corruptions . | . . . . Robots Melted . | . . . . Combat Hostiles . | . . . . Parts Melted 2 | . . . 2 Heat Transferred 1661 | . . 814 847 Parts Sabotaged . | . . . . Parts Stolen . | . . . . Parts Stripped . | . . . . Power Chain Reactions . | . . . . Alert | -11 -10 -9 -8 ------- Run | Yrd Mat Mat Mat Maximum Alert Level . | . . . . Low Security (%) 100 | 100 100 100 100 Level 1 . | . . . . Level 2 . | . . . . Level 3 . | . . . . Level 4 . | . . . . Level 5 . | . . . . High Security . | . . . . Max Security . | . . . . Peak Influence 172 | . 60 78 172 Initial 16 | . . 16 15 Average 52 | . 33 45 69 Influence Increases 624 | . 70 222 332 Destroy 0b10 Robot/C 340 | . 60 160 120 Destroy 0b10 Robot/NC 45 | . . 5 40 Destroy Leader 88 | . 10 42 36 Disable Machine 60 | . . . 60 Destroy Structure 61 | . . . 61 Lose Combat Pursuer 30 | . . 15 15 Influence Decreases 541 | . 30 224 287 Entered New Map 47 | . . 24 23 Time Decay 404 | . 30 190 184 Lost Part 90 | . . 10 80 Squads Dispatched 3 | . . 1 2 Investigation 1 | . . . 1 Extermination . | . . . . Reinforcement 2 | . . 1 1 Assault . | . . . . Garrison . | . . . . Intercept . | . . . . Searches Triggered . | . . . . Construction Impeded . | . . . . Haulers Reinforced . | . . . . Active Scanning Responses . | . . . . Cargo Convoy Interrupts . | . . . . Stealth | -11 -10 -9 -8 --------- Run | Yrd Mat Mat Mat Distress Signals 5 | . . 2 3 Communications Jammed . | . . . . Distress Signals . | . . . . Times Spotted 39 | . 3 13 23 Peak Tracking Total 10 | . 3 5 10 Tactical Retreats 2 | . . 1 1 Traps | -11 -10 -9 -8 ------- Run | Yrd Mat Mat Mat Traps Triggered 2 | . . 1 1 Indirectly . | . . . . Trap Hack Attempts . | . . . . Triggered . | . . . . Disarmed . | . . . . Reprogrammed . | . . . . Reused . | . . . . Traps Extracted . | . . . . Installed . | . . . . Triggered . | . . . . Machines | -11 -10 -9 -8 ---------- Run | Yrd Mat Mat Mat Machines Disabled 4 | . . . 4 Max in Single Turn 3 | . . . 3 Machines Repaired . | . . . . Machines Dismantled . | . . . . Machines Sabotaged . | . . . . Overloaded Fab Kills . | . . . . Hacking | -11 -10 -9 -8 --------- Run | Yrd Mat Mat Mat Machines Accessed . | . . . . Terminals . | . . . . Fabricators . | . . . . Repair Stations . | . . . . Recycling Units . | . . . . Scanalyzers . | . . . . Garrison Access . | . . . . Total Hacks . | . . . . Successful . | . . . . Failed . | . . . . Catastrophic . | . . . . Database Lockouts . | . . . . Manual . | . . . . Terminals . | . . . . Fabricators . | . . . . Repair Stations . | . . . . Recycling Units . | . . . . Scanalyzers . | . . . . Garrison Access . | . . . . Terminal Hacks . | . . . . Fabricator Hacks . | . . . . Repair Station Hacks . | . . . . Recycling Unit Hacks . | . . . . Scanalyzer . | . . . . Garrison Access Hacks . | . . . . Unauthorized Hacks . | . . . . Terminals . | . . . . Fabricators . | . . . . Repair Stations . | . . . . Recycling Units . | . . . . Scanalyzers . | . . . . Garrison Access . | . . . . Data Cores Recovered . | . . . . Used . | . . . . Hacking Detections . | . . . . Full Trace Events . | . . . . Feedback Events . | . . . . Feedback Blocked . | . . . . Robot Schematics Acquired . | . . . . Robots Built . | . . . . Authchips . | . . . . Time . | . . . . Total Robot Build Rating . | . . . . Part Schematics Acquired . | . . . . Parts Built . | . . . . Authchips . | . . . . Time . | . . . . Total Part Build Rating . | . . . . Part Studies Acquired . | . . . . Parts Repaired . | . . . . Time . | . . . . Parts Recycled . | . . . . Recycled Matter . | . . . . Retrieved Matter . | . . . . Retrieved Components . | . . . . Parts Scanalyzed . | . . . . Part Schematics Acquired . | . . . . Parts Damaged . | . . . . Bothacking | -11 -10 -9 -8 ------------ Run | Yrd Mat Mat Mat Used RIF Installer . | . . . . Robots Hacked . | . . . . Non-combat . | . . . . Combat . | . . . . Robot Hacks Applied . | . . . . Relay Couplers Released . | . . . . Fabnet Peak Effective % . | . . . . Robots Rewired . | . . . . Allies Hacked . | . . . . Hacks Repelled . | . . . . Allies | -11 -10 -9 -8 -------- Run | Yrd Mat Mat Mat Total Allies . | . . . . Largest Group . | . . . . Highest-Rated Group . | . . . . Highest-Rated Ally . | . . . . Total Orders . | . . . . Ally Attacks . | . . . . Total Damage . | . . . . Kills . | . . . . Allies Corrupted . | . . . . Allies Melted . | . . . . Intel | -11 -10 -9 -8 ------- Run | Yrd Mat Mat Mat Active Infowar (turns) . | . . . . Robot Analysis Total . | . . . . Derelict Logs Recovered . | . . . . Drone Launches . | . . . . Drone Recoveries . | . . . . Exploration | -11 -10 -9 -8 ------------- Run | Yrd Mat Mat Mat Turns Passed 974 | 67 75 385 447 Spaces Moved 911 | 55 88 278 490 Core 122 | 7 . . 115 Treads . | . . . . Legs 62 | 48 14 . . Wheels . | . . . . Hover . | . . . . Flight 727 | . 74 278 375 Fastest Speed 37 | 50 37 37 37 Average Speed 81 | 111 50 99 73 Slowest Speed 150 | 120 120 117 150 Overloaded Moves . | . . . . Propulsion Burnouts . | . . . . Robots Hopped 6 | . . . 6 Potential Cave-ins 6 | . . . 6 Cave-ins Triggered . | . . . . Exploration Rate (%) 23 | 4 18 23 47 Regions Visited 3 Branch Regions . Pre-discovered Areas . | . . . . Known Exits Taken . | . . . . Unknown Exits Taken 3 | 1 1 1 . Scrap Searched . | . . . . Spaces Dug . | . . . . Terrain Destroyed 72 | . . . 72 Melee . | . . . . Projectile . | . . . . AOE 72 | . . . 72 Terrain Rammed . | . . . . Walls Destroyed . | . . . . Machines Disabled . | . . . . Actions | -11 -10 -9 -8 --------- Run | Yrd Mat Mat Mat Total 1033 | 59 105 341 528 Wait 17 | . . 9 8 Move 896 | 54 87 277 478 Hop 6 | . . . 6 Pick Up 8 | 1 1 4 2 Fast Attach 11 | 4 1 5 1 Attach 5 | . . 2 3 Detach . | . . . . Swap 8 | . 3 5 . Drop 6 | . . 2 4 Fire 70 | . 13 32 25 Melee . | . . . . Ram 6 | . . 5 1 Kick . | . . . . Crush . | . . . . Escape Stasis . | . . . . Rewire . | . . . . Trap . | . . . . Miscellaneous . | . . . . Route ------- -11/Scrapyard -10/Materials -9/Materials -8/Materials (discovered 1 exit: [*Sto]) History --------- Turn | Location | Event 10 | -11/Scrapyard | Discovered new exit (range 16) 68 | -11/Scrapyard | Entered Materials 137 | -10/Materials | Discovered new exit (range 16) 143 | -10/Materials | Entered another Materials area 143 | -9/Materials | Evolved 2 slots: Utility x2 301 | -9/Materials | Build established: Mutant 409 | -9/Materials | Core integrity fell below 50% 492 | -9/Materials | Discovered new exit (range 8) 528 | -9/Materials | Entered another Materials area 528 | -8/Materials | Evolved 2 slots: Propulsion x2 790 | -8/Materials | Core integrity fell below 50% 821 | -8/Materials | Lost 5 parts (1n2u2w) 864 | -8/Materials | Core integrity fell below 20% 958 | -8/Materials | Discovered new exit (range 6) 975 | -8/Materials | Destroyed by G-47 Trooper with Particle Gun Last Messages --------------- 00871_ Acquired 4 matter. 00873_ 7B=QS30AS5, 0CJTEPD 8Z&B4EKAB3KL 00873_ K-01 Serf cleans the Terminal. 00885_ G-47 Trooper knocked back. 00888_ K-01 Serf cleans the Terminal. 00906_ System corrupted: Heat flow error (+206). 00910_ Pulse Rifle destroyed. 00926_ System corrupted: Component data lost. 00934_ Dropped Med. Storage Unit. 00935_ Dropped Lrg. Storage Unit. 00943_ Triggered Alarm Trap. 00943_ An alarm sounds. 00943_ ALERT: Alarm triggered, dispatching investigation squad. 00955_ System corrupted: Matter fused (-8). 00958_ EXIT=FOUND 00959_ W-25 Informer sends out distress signal. 00970_ K-01 Serf destroyed. 00970_ K-01 Serf collects debris. 00973_ System corrupted: Matter fused (-9). Map ----- +----------------------------------------------------+ | ????????????????????????#!#????? | | ????????????????????????# #????? | | ????????????????????????# #????? | | ???????????????########## #????? | | ???????????????# # #????? | | ???????????????# # #????? | | ?????????????? # "" # ###### | | ?????????????? # """ # | | ?????????????? # / | | ?????????????# # """ # | | ?????????????# # """ ######## | | ?????????????# # """ #??????? | | ?????????????# # #??????? | | ?????????????# ########+#??????? | | ?????????????# #??????# #??????? | | ?????????????# #??????# #??????? | | ?????????????# #??????# #??????? | | ?????????????# ######## #??????? | | ?????????????# *#??????? | | ?????????????# =%#??????? | | ????########## =!#??????? | | ????# g #??????? | | ????# ######## #??????? | | ????# g# """" # ^ #??????? | | ????# + """" / +??????? | | ????# @ # """" # #??????? | | ????# # # #??????? | | ????# + !# #??????? | | ????#Y####### ] # #??????? | | ????# #?????######## #??????? | | ????# #????????????# #??????? | | ????# #????????###?# #??????? | | ????# ### #??????? | | ????# < +??????? | | ????# # * #??????? | | ???? #??????###?#### #??????? | | ????!!==#?????????????? ??????? | | ???]!!==#?????????????? ??????? | | ???######??????????????????????? | | ???????????????????????????????? | | ???????????????????????????????? | | ???????????????????????????????? | | ???????????????????????????????? | | ???????????????????????????????? | | ???????????????????????????????? | | ???????????????????????????????? | | ???????????????????????????????? | | ???????????????????????????????? | | ???????????????????????????????? | | ???????????????????????????????? | +----------------------------------------------------+ Best States ------------- Heat Dissipation 38 Energy Generation 10 Energy Capacity 250 Matter Stores 300 Matter Capacity 300 Sight Range 16 Terrain Scan Density 10 Evasion (%) 62 Targeting Accuracy 32 Item Schematics ----------------- None Robot Schematics ------------------ None Fabricated ------------ Nothing Repaired ---------- Nothing Studied --------- None Alien Tech Used ----------------- None Achievements -------------- None Challenges ------------ None Game ------ Seed BoreAutogunDeflector Manual? 0 Play Time 00:23:11 Cumulative 9.5 hours Start 2026.01.28 @ 20:57:57 End 2026.01.28 @ 21:35:48 Sessions 1 Manual Loads 0 Difficulty Rogue Special Mode None Game No. 20 Rogue 20 Adventurer 0 Explorer 0 Win Type - Total 0 Types 0/0/0/0/0/0/0/0/0/0 Lore% 3 Gallery% 17 Achievement% 12 Wizard Run 0 Options --------- Layout 2 ASCII 0 Keyboard 1 Movement Arrows Keybinds 0 Fullscreen 1 Font 24/Smallcaps Map View 50x44 Zoom Use 43% Tactical HUD 1 Map Filters NONE Filters NONE Steam 1 RUN: 4556ea60-3a41-4683-a639-ff24d407b03c